bitfinex/quotes_SOLUSD_20241122
["timestamp","ask_amount","ask_price","bid_price","bid_amount"]
[1732308235102,12.0140899,254.4,254.32,12.0140899]
[1732308235284,12.0140899,254.4,254.21,6.3233]
[1732308235285,12.0140899,254.4,254.3,12.0140899]
[1732308237304,6.0567,254.48,254.35,12.0140899]
[1732308237485,18.0707899,254.48,254.38,12.0140899]
[1732308238298,6.0567,254.48,254.36,12.0140899]
[1732308238488,12.0140899,254.47,254.38,12.0140899]
[1732308243392,12.0140899,254.45,254.36,12.0140899]
[1732308248702,12.0140899,254.47,254.38,12.0140899]
[1732308249494,12.0140899,254.45,254.36,12.0140899]
[1732308251795,12.0140899,254.43,254.34,12.0140899]
[1732308252403,12.0140899,254.41,254.32,12.0140899]
[1732308252601,12.0140899,254.39,254.3,12.0140899]
[1732308252805,16.4156,254.38,254.3,12.0140899]
[1732308258824,16.4156,254.38,254.3,7.69813742]
[1732308259203,16.4156,254.38,254.32,7.69813742]
[1732308260827,16.4156,254.38,254.3,7.69813742]
[1732308263429,16.4156,254.38,254.32,7.69813742]
[1732308266224,4.21639954,254.42,254.32,7.69813742]
[1732308266528,7.69813742,254.43,254.32,7.69813742]
[1732308266833,7.69813742,254.43,254.34,7.69813742]
[1732308267333,23.776884,254.45,254.36,7.69813742]
[1732308267538,7.69813742,254.45,254.36,7.69813742]
[1732308268325,7.69813742,254.43,254.32,7.69813742]
[1732308268628,23.776884,254.44,254.31,7.69813742]
[1732308268831,23.776884,254.4,254.31,7.69813742]
[1732308269011,23.776884,254.4,254.2,23.776884]
[1732308269214,23.776884,254.4,254.3,7.69813742]
[1732308269918,7.69813742,254.39,254.3,7.69813742]
[1732308270632,7.69813742,254.39,254.28,7.69813742]
[1732308271330,7.69813742,254.39,254.3,7.69813742]
[1732308272729,48.35243209,254.42,254.3,7.69813742]
[1732308272928,23.776884,254.4,254.3,7.69813742]
[1732308273315,23.776884,254.4,254.32,7.69813742]
[1732308273735,24.57554809,254.42,254.34,7.69813742]
[1732308274034,24.57554809,254.43,254.34,7.69813742]
[1732308274617,24.57554809,254.43,254.36,7.69813742]
[1732308275015,24.57554809,254.45,254.36,7.69813742]
[1732308275215,40.77214809,254.46,254.36,7.69813742]
[1732308276023,24.57554809,254.44,254.36,7.69813742]
[1732308276344,24.57554809,254.43,254.36,7.69813742]
[1732308277224,12.30791234,254.4,254.34,7.69813742]
[1732308277423,20.00604976,254.39,254.2,23.776884]
[1732308277727,20.00604976,254.35,254.26,7.69813742]
[1732308277928,12.30791234,254.35,254.28,7.69813742]
[1732308278840,12.30791234,254.36,254.32,12.0282029]
[1732308279136,12.30791234,254.36,254.3,12.0282029]
[1732308279344,12.30791234,254.35,254.3,12.0282029]
[1732308281952,12.30791234,254.35,254.32,12.0282029]
[1732308282247,12.30791234,254.37,254.34,12.0282029]
[1732308283035,12.30791234,254.38,254.34,12.0282029]
[1732308284459,12.30791234,254.38,254.2,23.776884]
[1732308284657,24.57554809,254.4,254.06,19.10540555]
[1732308284658,12.30791234,254.36,254.28,12.0282029]
[1732308284947,12.30791234,254.35,254.28,12.0282029]
[1732308285327,12.30791234,254.35,254.19,6.1207]
[1732308285328,12.30791234,254.35,254.26,12.0282029]
[1732308285541,12.30791234,254.34,254.26,12.0282029]
[1732308287058,12.30791234,254.34,254.28,12.0282029]
[1732308287728,12.30791234,254.35,254.28,12.0282029]
[1732308292255,12.30791234,254.36,254.28,12.0282029]
[1732308292634,12.30791234,254.37,254.3,12.0282029]
[1732308293456,12.30791234,254.37,254.32,12.0282029]
[1732308295053,12.30791234,254.37,254.3,12.0282029]
[1732308295435,12.30791234,254.37,254.32,12.0282029]
[1732308296558,12.30791234,254.37,254.26,16.5949]
[1732308296559,12.30791234,254.38,254.34,12.0282029]
[1732308297154,12.30791234,254.37,254.34,12.0282029]
[1732308297456,12.30791234,254.37,254.32,12.0282029]
[1732308299841,12.30791234,254.36,254.3,12.0282029]
[1732308302746,12.30791234,254.36,254.21,15.3872]
[1732308302747,12.30791234,254.36,254.32,12.0282029]
[1732308303365,24.33611524,254.36,254.27,12.0282029]
[1732308303571,24.33611524,254.36,254.26,23.776884]
[1732308303771,24.33611524,254.36,254.27,12.0282029]
[1732308304878,7.69939544,254.33,254.21,15.3872]
[1732308305171,7.69939544,254.33,254.24,7.69939544]
[1732308305749,7.69939544,254.33,254.21,15.3872]
[1732308305950,7.69939544,254.29,254.19,7.69939544]
[1732308306572,18.49111234,254.32,254.21,7.69939544]
[1732308306748,6.1832,254.32,254.24,7.69939544]
[1732308307153,6.1832,254.32,254.25,23.776884]
[1732308307762,7.69939544,254.3,254.25,23.776884]
[1732308308272,7.69939544,254.3,254.22,23.776884]
[1732308308575,26.19050778,254.32,254.22,23.776884]
[1732308308877,6.1832,254.32,254.25,12.03268323]
[1732308309890,12.03268323,254.32,254.24,12.03268323]
[1732308310176,12.03268323,254.32,254.25,23.776884]
[1732308310350,12.03268323,254.32,254.23,23.776884]
[1732308311149,12.03268323,254.3,254.23,23.776884]
[1732308311489,12.03268323,254.32,254.23,23.776884]
[1732308311776,12.03268323,254.3,254.23,23.776884]
[1732308312375,12.03268323,254.32,254.23,23.776884]
[1732308314971,12.03268323,254.3,254.21,23.776884]
[1732308315378,12.30791234,254.33,254.19,23.776884]
[1732308315379,12.03268323,254.28,254.19,23.776884]
[1732308315877,12.03268323,254.28,254.18,12.03268323]
[1732308316177,12.30791234,254.31,254.08,2.5]
[1732308316178,12.03268323,254.22,254.12,12.03268323]
[1732308316356,12.03268323,254.24,254.14,12.03268323]
[1732308316553,12.03268323,254.26,254.18,12.03268323]
[1732308317577,6.6613,254.27,254.19,23.776884]
[1732308318277,12.30791234,254.31,254.19,23.776884]
[1732308318278,12.30791234,254.31,254.22,12.03268323]
[1732308318490,24.34059557,254.32,254.23,23.776884]
[1732308318659,12.03268323,254.3,254.23,23.776884]
[1732308320167,24.34059557,254.32,254.23,23.776884]
[1732308322090,12.03268323,254.32,254.25,23.776884]
[1732308322383,12.03268323,254.32,254.23,23.776884]
[1732308323686,12.03268323,254.32,254.24,12.03268323]
[1732308324058,12.03268323,254.32,254.25,23.776884]
[1732308324782,6.3026,254.33,254.25,23.776884]
[1732308324783,6.3026,254.33,254.26,12.03268323]
[1732308325166,30.64319557,254.33,254.23,23.776884]
[1732308325589,12.03268323,254.31,254.23,23.776884]
[1732308325764,12.03268323,254.31,254.22,12.03268323]
[1732308327583,12.03268323,254.29,254.2,12.03268323]
[1732308328076,12.30791234,254.3,254.22,12.03268323]
[1732308328563,24.34059557,254.31,254.22,12.03268323]
[1732308328884,20.01040499,254.31,254.22,7.70249265]
[1732308329270,12.30791234,254.3,254.22,7.70249265]
[1732308329874,12.30791234,254.31,254.24,7.70249265]
[1732308330086,12.30791234,254.32,254.24,7.70249265]
[1732308330386,12.30791234,254.32,254.22,7.70249265]
[1732308331071,7.70249265,254.31,254.22,7.70249265]
[1732308331385,6.16128319,254.3,254.22,7.70249265]
[1732308333487,6.16128319,254.3,254.2,7.70249265]
[1732308333676,7.70249265,254.29,254.08,15.2549]
[1732308333985,7.70249265,254.27,254.19,7.70249265]
[1732308334183,7.70249265,254.27,254.17,7.70249265]
[1732308334375,6.16128319,254.26,254.17,7.70249265]
[1732308334969,6.16128319,254.25,254.17,7.70249265]
[1732308335574,6.16128319,254.26,254.17,7.70249265]
[1732308336293,6.16128319,254.26,254.19,7.70249265]
[1732308336878,6.16128319,254.26,254.21,7.70249265]
[1732308337285,6.16128319,254.29,254.23,7.70249265]
[1732308338183,6.16128319,254.3,254.23,7.70249265]
[1732308338578,6.16128319,254.3,254.21,7.70249265]
[1732308338887,6.16128319,254.29,254.21,7.70249265]
[1732308339695,6.16128319,254.29,254.24,7.70249265]
[1732308339900,6.16128319,254.3,254.24,7.70249265]
[1732308340090,6.16128319,254.29,254.24,7.70249265]
[1732308340700,6.16128319,254.28,254.23,7.70249265]
[1732308341271,6.16128319,254.28,254.21,7.70249265]
[1732308341472,6.16128319,254.27,254.21,7.70249265]
[1732308343304,6.16128319,254.27,254.15,30.8099706]
[1732308343305,6.16128319,254.27,254.23,7.70249265]
[1732308343484,6.16128319,254.28,254.23,7.70249265]
[1732308344193,6.16128319,254.28,254.21,7.70249265]
[1732308344391,6.16128319,254.27,254.21,7.70249265]
[1732308344974,7.70249265,254.25,254.15,7.70249265]
[1732308345180,6.4165,254.24,254.15,7.70249265]
[1732308345594,12.57778319,254.24,254.15,7.70249265]
[1732308345780,12.57778319,254.24,254.08,15.2549]
[1732308345781,6.4165,254.24,254.17,7.70249265]
[1732308345981,12.57778319,254.24,254.17,7.70249265]
[1732308346174,12.57778319,254.24,254.07,3.59420306]
[1732308346390,6.16128319,254.23,254.02,46.6471706]
[1732308346586,6.16128319,254.23,254.14,7.70249265]
[1732308346790,7.70249265,254.23,254.02,46.6471706]
[1732308346982,13.86377584,254.23,254.13,7.70249265]
[1732308347806,6.4165,254.24,254.15,7.70249265]
[1732308347807,12.57778319,254.24,254.15,7.70249265]
[1732308348685,12.57778319,254.24,254.19,7.70249265]
[1732308348888,12.57778319,254.24,254.21,7.70249265]
[1732308349102,6.4165,254.24,254.21,7.70249265]
[1732308350291,6.4165,254.24,254.19,7.70249265]
[1732308351384,6.4165,254.24,254.21,7.70249265]
[1732308351898,6.4165,254.24,254.19,7.70249265]
[1732308352398,6.4165,254.24,254.03,23.776884]
[1732308352587,14.11899265,254.24,254.15,7.70249265]
[1732308355501,14.11899265,254.24,254.14,7.70249265]
[1732308355891,14.11899265,254.24,254.04,23.776884]
[1732308356203,6.4165,254.24,254.17,7.70249265]
[1732308356902,6.4165,254.24,254.15,7.70249265]
[1732308357801,6.4165,254.24,254.17,7.70249265]
[1732308359092,6.4165,254.24,254.04,23.776884]
[1732308359093,6.4165,254.24,254.19,7.70249265]
[1732308359296,6.4165,254.24,254.21,7.70249265]
[1732308360914,15.2228,254.26,254.23,7.70249265]
[1732308361704,12.80898319,254.3,254.25,7.70249265]
[1732308362006,12.80898319,254.3,254.16,23.776884]
[1732308362192,6.16128319,254.29,254.22,7.70249265]
[1732308362384,6.16128319,254.29,254.26,7.70249265]
[1732308362592,6.16128319,254.29,254.2,7.70249265]
[1732308362593,7.70249265,254.29,254.2,7.70249265]
[1732308362801,6.16128319,254.29,254.22,7.70249265]
[1732308363101,6.16128319,254.29,254.2,7.70249265]
[1732308363491,6.16128319,254.28,254.2,7.70249265]
[1732308363698,13.86377584,254.28,254.2,7.70249265]
[1732308364010,7.70249265,254.28,254.2,7.70249265]
[1732308364184,6.16128319,254.29,254.2,7.70249265]
[1732308365688,6.16128319,254.29,254.24,7.70249265]
[1732308365982,6.16128319,254.29,254.22,7.70249265]
[1732308366298,6.16128319,254.28,254.2,7.70249265]
[1732308367187,6.16128319,254.28,254.07,2.5]
[1732308367188,6.16128319,254.27,254.07,15.3497]
[1732308367402,6.16128319,254.26,254.17,7.70249265]
[1732308367708,13.86377584,254.26,254.17,7.70249265]
[1732308369198,6.16128319,254.26,254.19,7.70249265]
[1732308369489,20.01040499,254.28,254.19,7.70249265]
[1732308369490,6.16128319,254.27,254.19,7.70249265]
[1732308370307,6.16128319,254.27,254.07,15.3497]
[1732308370308,7.70249265,254.26,254.17,7.70249265]
[1732308371207,7.70249265,254.24,254.15,7.70249265]
[1732308371586,13.86377584,254.26,254.15,7.70249265]
[1732308372411,13.86377584,254.26,254.17,7.70249265]
[1732308372710,7.70249265,254.26,254.15,7.70249265]
[1732308372898,13.86377584,254.26,254.15,7.70249265]
[1732308373694,6.16128319,254.22,254.15,7.70249265]
[1732308374308,6.16128319,254.22,254.17,7.70249265]
[1732308376814,15.576,254.21,254.07,15.3497]
[1732308377122,15.576,254.21,254.11,7.70249265]
[1732308377123,12.40538319,254.2,254.11,7.70249265]
[1732308377823,12.40538319,254.2,254.13,7.70249265]
[1732308377997,12.40538319,254.2,254.03,3.88619751]
[1732308377998,6.16128319,254.19,254.15,7.70249265]
[1732308378203,12.40538319,254.2,254.15,7.70249265]
[1732308379512,6.16128319,254.19,254.15,7.70249265]
[1732308379725,12.40538319,254.2,254.15,7.70249265]
[1732308379925,6.16128319,254.19,254.15,7.70249265]
[1732308380302,6.16128319,254.19,254.13,7.70249265]
[1732308380603,6.16128319,254.19,254.11,7.70249265]
[1732308381802,6.16128319,254.19,254.13,7.70249265]
[1732308382412,6.16128319,254.19,254.15,7.70249265]
[1732308383423,6.16128319,254.19,254.11,7.70249265]
[1732308383609,6.16128319,254.18,254.11,7.70249265]
[1732308383816,6.16128319,254.17,254.11,7.70249265]
[1732308384211,6.16128319,254.16,254.11,7.70249265]
[1732308384413,6.16128319,254.17,254.15,7.70249265]
[1732308384724,6.16128319,254.16,254.11,7.70249265]
[1732308385223,6.16128319,254.15,254.09,7.70249265]
[1732308385423,6.16128319,254.14,254.09,7.70249265]
[1732308386805,6.16128319,254.14,254.11,7.70249265]
[1732308387122,6.16128319,254.14,254.13,7.70249265]
[1732308387326,6.16128319,254.16,254.13,7.70249265]
[1732308387910,6.16128319,254.16,254.02,23.776884]
[1732308388126,6.16128319,254.15,254.1,7.70249265]
[1732308388433,6.16128319,254.15,254.02,54.5868546]
[1732308388434,6.16128319,254.15,254.12,7.70249265]
[1732308388929,6.16128319,254.14,254.12,7.70249265]
[1732308389308,6.16128319,254.16,254.12,7.70249265]
[1732308389805,6.16128319,254.15,254.1,7.70249265]
[1732308390309,6.16128319,254.14,254.1,7.70249265]
[1732308390814,6.16128319,254.15,254.1,7.70249265]
[1732308391828,6.16128319,254.12,254.02,23.776884]
[1732308392010,6.16128319,254.11,254.08,7.70249265]
[1732308392901,6.16128319,254.1,254.08,7.70249265]
[1732308393112,6.16128319,254.11,254.08,7.70249265]
[1732308394127,15.5976,254.1,253.95,15.5629]
[1732308394330,6.15732518,254.08,254.04,7.70249265]
[1732308395030,6.15732518,254.07,254.04,7.70249265]
[1732308395418,6.15732518,254.08,254.04,7.70249265]
[1732308396034,6.15732518,254.08,254.02,7.70249265]
[1732308397316,6.15732518,254.09,254.04,7.70249265]
[1732308397531,28.11212518,254.1,254.06,7.70249265]
[1732308397728,21.9548,254.1,254.06,7.70249265]
[1732308400024,28.11212518,254.1,254.04,7.70249265]
[1732308400534,21.9548,254.1,254.04,7.70249265]
[1732308400728,21.9548,254.1,254.06,7.70249265]
[1732308402238,21.9548,254.1,254.04,7.70249265]
[1732308402628,21.9548,254.1,253.96,23.776884]
[1732308402629,21.9548,254.1,254.02,7.70249265]
[1732308403140,28.11212518,254.1,254.02,7.70249265]
[1732308403363,21.9548,254.1,254.02,7.70249265]
[1732308404335,7.70249265,254.06,253.89,15.2388]
[1732308404644,7.70249265,254.06,253.97,7.70249265]
[1732308404847,7.70249265,254.06,253.89,15.2388]
[1732308405141,13.85981783,254.04,253.83,18.73716417]
[1732308405445,7.70249265,254.02,253.93,7.70249265]
[1732308406721,7.70249265,254.04,253.95,7.70249265]
[1732308408129,6.15732518,254.05,253.95,7.70249265]
[1732308408443,7.70249265,254.04,253.95,7.70249265]
[1732308408851,13.85981783,254.06,253.97,7.70249265]
[1732308409042,7.70249265,254.06,253.97,7.70249265]
[1732308409351,6.15732518,254.09,254.02,7.70249265]
[1732308409553,29.65729265,254.1,254.02,7.70249265]
[1732308410425,29.65729265,254.1,254.0,7.70249265]
[1732308411644,7.70249265,254.08,254.0,7.70249265]
[1732308411852,7.70249265,254.08,253.98,7.70249265]
[1732308412147,7.70249265,254.06,253.98,7.70249265]
[1732308413655,7.70249265,254.08,254.0,7.70249265]
[1732308413827,29.65729265,254.1,254.02,7.70249265]
[1732308414035,29.65729265,254.1,254.0,7.70249265]
[1732308414750,21.9548,254.1,254.04,7.70249265]
[1732308417132,21.9548,254.1,254.06,7.70249265]
[1732308417333,28.84732518,254.17,254.08,7.70249265]
[1732308417541,22.69,254.17,254.1,7.70249265]
[1732308418128,30.39249265,254.17,254.08,7.70249265]
[1732308418753,6.15732518,254.19,254.15,29.40569265]
[1732308419053,73.90790158,254.41,254.15,29.40569265]
[1732308419054,6.15732518,254.32,254.19,23.776884]
[1732308419350,6.15732518,254.34,254.28,7.70249265]
[1732308419850,28.67342518,254.36,254.28,7.70249265]
[1732308420034,22.5161,254.36,254.28,7.70249265]
[1732308421049,28.67342518,254.36,254.29,12.02906964]
[1732308421233,28.67342518,254.36,254.27,12.02906964]
[1732308421633,22.5161,254.36,254.27,12.02906964]
[1732308421828,12.02906964,254.34,254.25,12.02906964]
[1732308423338,12.02906964,254.32,254.23,12.02906964]
[1732308423671,12.02906964,254.3,254.21,12.02906964]
[1732308423839,12.02906964,254.34,254.25,12.02906964]
[1732308425253,12.02906964,254.3,254.23,12.02906964]
[1732308425440,12.02906964,254.3,254.21,12.02906964]
[1732308426363,12.02906964,254.32,254.23,12.02906964]
[1732308427436,6.15732518,254.33,254.27,12.02906964]
[1732308427638,6.15732518,254.34,254.27,12.02906964]
[1732308428453,12.02906964,254.31,254.23,12.02906964]
[1732308428862,12.02906964,254.29,254.21,12.02906964]
[1732308429151,6.15732518,254.33,254.17,12.02906964]
[1732308429152,12.02906964,254.25,254.17,12.02906964]
[1732308430054,12.02906964,254.27,254.19,12.02906964]
[1732308430243,12.02906964,254.27,254.17,12.02906964]
[1732308430442,12.02906964,254.23,254.15,12.02906964]
[1732308431749,12.02906964,254.19,254.09,12.02906964]
[1732308431956,12.02906964,254.17,254.09,12.02906964]
[1732308432248,27.83802518,254.23,254.05,12.02906964]
[1732308432249,12.02906964,254.13,254.05,12.02906964]
[1732308433160,12.02906964,254.15,254.07,12.02906964]
[1732308434136,12.02906964,254.17,254.07,12.02906964]
[1732308434338,12.02906964,254.17,254.09,12.02906964]
[1732308434630,12.02906964,254.17,254.02,12.02906964]
[1732308434631,12.02906964,254.21,254.11,12.02906964]
[1732308434836,39.86709482,254.23,254.13,12.02906964]
[1732308436043,12.02906964,254.21,254.13,12.02906964]
[1732308438943,33.70976964,254.23,254.13,12.02906964]
[1732308439357,12.02906964,254.2,254.11,12.02906964]
[1732308439551,12.02906964,254.22,254.13,12.02906964]
[1732308440037,21.6807,254.23,254.13,12.02906964]
[1732308440240,21.6807,254.23,254.15,12.02906964]
[1732308440443,21.6807,254.23,254.17,12.02906964]
[1732308440656,21.6807,254.23,254.15,12.02906964]
[1732308441061,33.70976964,254.23,254.15,12.02906964]
[1732308441241,12.02906964,254.21,254.13,12.02906964]
[1732308441440,33.70976964,254.23,254.13,12.02906964]
[1732308443159,21.6807,254.23,254.15,12.02906964]
[1732308443468,18.18639482,254.27,254.17,12.02906964]
[1732308443659,12.02906964,254.27,254.17,12.02906964]
[1732308444161,6.15732518,254.28,254.19,12.02906964]
[1732308444345,40.21409482,254.29,254.19,12.02906964]
[1732308444552,34.05676964,254.29,254.19,12.02906964]
[1732308444762,40.21409482,254.29,254.19,12.02906964]
[1732308444964,12.02906964,254.27,254.19,12.02906964]
[1732308445165,12.02906964,254.25,254.08,23.776884]
[1732308445354,12.02906964,254.25,254.16,12.02906964]
[1732308446563,12.02906964,254.23,254.14,12.02906964]
[1732308448054,12.02906964,254.23,254.04,15.0659]
[1732308448055,12.02906964,254.21,254.12,12.02906964]
[1732308448254,12.02906964,254.23,254.14,12.02906964]
[1732308448861,12.02906964,254.25,254.16,12.02906964]
[1732308449263,12.02906964,254.25,254.04,15.0659]
[1732308449264,12.02906964,254.23,254.14,12.02906964]
[1732308450364,12.02906964,254.21,254.12,12.02906964]
[1732308450741,7.70931254,254.21,254.11,7.70931254]
[1732308451147,7.70931254,254.21,254.05,23.776884]
[1732308451449,7.70931254,254.17,254.08,7.70931254]
[1732308451969,29.29651254,254.18,254.08,7.70931254]
[1732308452379,29.29651254,254.18,254.1,7.70931254]
[1732308452691,21.5872,254.18,254.1,7.70931254]
[1732308452978,21.5872,254.18,254.1,12.04708424]
[1732308453366,12.04708424,254.17,254.1,12.04708424]
[1732308453982,21.5872,254.18,254.1,12.04708424]
[1732308454158,21.5872,254.18,254.12,12.04708424]
[1732308455065,21.5872,254.18,254.14,12.04708424]
[1732308455271,21.5872,254.18,254.12,12.04708424]
[1732308455906,6.15732518,254.24,254.14,12.04708424]
[1732308455907,12.04708424,254.23,254.14,12.04708424]
[1732308456382,21.5872,254.24,254.16,12.04708424]
[1732308457157,12.04708424,254.23,254.14,12.04708424]
[1732308458583,27.74452518,254.24,254.03,26.276884]
[1732308458584,27.74452518,254.24,254.16,12.04708424]
[1732308458883,12.04708424,254.23,254.14,12.04708424]
[1732308459057,12.04708424,254.21,254.12,12.04708424]
[1732308459464,6.15732518,254.23,254.14,12.04708424]
[1732308459666,18.20440942,254.24,254.14,12.04708424]
[1732308460484,6.15732518,254.23,254.14,12.04708424]
[1732308460684,6.15732518,254.23,254.16,12.04708424]
[1732308460985,6.15732518,254.23,254.14,12.04708424]
[1732308461194,12.04708424,254.22,254.14,12.04708424]
[1732308461487,18.20440942,254.22,254.14,12.04708424]
[1732308461660,18.20440942,254.22,254.04,16.4613]
[1732308461661,12.04708424,254.2,254.12,12.04708424]
[1732308462365,12.04708424,254.18,254.09,12.04708424]
[1732308462570,12.04708424,254.16,254.09,12.04708424]
[1732308462991,12.04708424,254.16,254.07,12.04708424]
[1732308463161,12.04708424,254.14,254.05,12.04708424]
[1732308464593,18.20440942,254.14,254.05,12.04708424]
[1732308464884,12.04708424,254.12,254.05,12.04708424]
[1732308465796,6.15732518,254.11,254.03,12.04708424]
[1732308466164,6.15732518,254.1,254.03,12.04708424]
[1732308466374,6.15732518,254.1,253.97,15.0655]
[1732308466375,6.15732518,254.09,254.01,12.04708424]
[1732308466888,12.04708424,254.08,254.01,12.04708424]
[1732308467098,12.04708424,254.08,253.99,12.04708424]
[1732308467774,18.20440942,254.08,253.99,12.04708424]
[1732308469089,12.04708424,254.06,253.99,12.04708424]
[1732308469294,18.20440942,254.06,253.97,12.04708424]
[1732308469469,6.15732518,254.06,254.01,12.04708424]
[1732308469666,6.15732518,254.06,253.99,12.04708424]
[1732308469868,6.15732518,254.06,253.97,12.04708424]
[1732308470064,6.15732518,254.05,253.97,12.04708424]
[1732308470600,6.15732518,254.06,253.97,12.04708424]
[1732308471290,12.04708424,254.03,253.95,12.04708424]
[1732308472967,12.04708424,254.01,253.91,12.04708424]
[1732308473173,12.04708424,253.99,253.91,12.04708424]
[1732308473580,28.51818424,253.99,253.91,12.04708424]
[1732308473785,35.12138424,253.99,253.91,12.04708424]
[1732308474796,7.72247529,253.98,253.9,7.72247529]
[1732308475601,23.0743,253.99,253.92,7.72247529]
[1732308476792,7.72247529,253.98,253.9,7.72247529]
[1732308477095,23.0743,253.99,253.9,7.72247529]
[1732308477287,23.0743,253.99,253.92,7.72247529]
[1732308477476,23.0743,253.99,253.94,7.72247529]
[1732308477674,7.72247529,254.03,253.94,7.72247529]
[1732308478572,36.77940047,254.05,253.96,7.72247529]
[1732308478785,22.8996,254.05,253.98,7.72247529]
[1732308480093,22.8996,254.05,253.9,23.776884]
[1732308480297,22.8996,254.05,253.97,7.72247529]
[1732308480782,34.95980843,254.05,253.97,12.06020843]
[1732308481396,12.06020843,254.03,253.95,12.06020843]
[1732308481580,34.95980843,254.05,253.95,12.06020843]
[1732308481779,12.06020843,254.03,253.95,12.06020843]
[1732308482692,12.06020843,254.01,253.93,12.06020843]
[1732308482897,12.06020843,254.03,253.95,12.06020843]
[1732308483502,34.95980843,254.05,253.97,12.06020843]
[1732308483701,34.95980843,254.05,253.89,12.06020843]
[1732308483702,22.8996,254.05,253.99,12.06020843]
[1732308484604,12.06020843,254.09,254.01,12.06020843]
[1732308484784,33.95960843,254.11,254.03,12.06020843]
[1732308486805,21.8994,254.11,254.03,12.06020843]
[1732308488391,33.95960843,254.11,254.01,12.06020843]
[1732308488988,33.95960843,254.11,254.03,12.06020843]
[1732308489800,21.8994,254.11,254.03,12.06020843]
[1732308489990,21.8994,254.11,254.07,12.06020843]
[1732308490500,12.30791234,254.18,254.07,12.06020843]
[1732308490501,6.15732518,254.16,254.07,12.06020843]
[1732308490882,35.06600843,254.17,254.11,12.06020843]
[1732308490883,16.6412,254.17,254.11,12.06020843]
[1732308491103,6.15732518,254.2,254.11,12.06020843]
[1732308491306,12.06020843,254.21,254.13,12.06020843]
[1732308491803,12.06020843,254.19,254.11,12.06020843]
[1732308492009,12.06020843,254.19,254.09,12.06020843]
[1732308492191,12.06020843,254.17,254.09,12.06020843]
[1732308492510,12.06020843,254.15,254.06,12.06020843]
[1732308493304,12.06020843,254.17,254.08,12.06020843]
[1732308494180,12.06020843,254.15,254.06,12.06020843]
[1732308494385,12.06020843,254.13,254.04,12.06020843]
[1732308495199,12.06020843,254.11,254.02,12.06020843]
[1732308495402,28.22260843,254.13,254.04,12.06020843]
[1732308497108,16.1624,254.13,254.06,12.06020843]
[1732308497406,16.1624,254.13,254.07,12.06020843]
[1732308497613,16.1624,254.13,254.06,12.06020843]
[1732308499405,12.06020843,254.17,254.08,12.06020843]
[1732308500694,12.06020843,254.17,254.02,12.06020843]
[1732308500695,7.70996367,254.18,254.09,7.70996367]
[1732308500894,16.1992,254.19,254.12,7.70996367]
[1732308501408,16.1992,254.19,254.1,7.70996367]
[1732308503411,16.1992,254.19,254.12,7.70996367]
[1732308505002,16.1992,254.19,254.05,15.6338]
[1732308505003,16.1992,254.19,254.09,7.70996367]
[1732308505321,7.70996367,254.16,254.08,7.70996367]
[1732308505615,16.1992,254.19,254.08,7.70996367]
[1732308505616,7.70996367,254.18,254.08,7.70996367]
[1732308506420,16.1992,254.19,254.08,7.70996367]
[1732308506421,7.70996367,254.16,254.08,7.70996367]
[1732308507196,7.70996367,254.18,254.08,7.70996367]
[1732308508020,7.70996367,254.18,254.1,7.70996367]
[1732308508724,16.1992,254.19,254.1,7.70996367]
[1732308509221,7.70996367,254.18,254.08,7.70996367]
[1732308510521,7.70996367,254.18,254.1,7.70996367]
[1732308514313,22.32394994,254.19,254.1,7.70996367]
[1732308514615,16.1992,254.19,254.12,7.70996367]
[1732308515959,16.1992,254.19,254.14,7.70996367]
[1732308518123,6.12474994,254.22,254.16,7.70996367]
[1732308518315,12.48934994,254.23,254.16,7.70996367]
[1732308518628,6.3646,254.23,254.16,7.70996367]
[1732308519930,6.3646,254.23,254.05,0.59006938]
[1732308519931,6.12474994,254.26,254.2,7.70996367]
[1732308520108,13.83471361,254.3,254.22,7.70996367]
[1732308520313,6.12474994,254.31,254.22,7.70996367]
[1732308521024,6.12474994,254.32,254.24,7.70996367]
[1732308521229,12.24949988,254.34,254.24,7.70996367]
[1732308521230,6.12474994,254.33,254.24,7.70996367]
[1732308521435,13.83471361,254.34,254.24,7.70996367]
[1732308522033,7.70996367,254.34,254.24,7.70996367]
[1732308524313,7.70996367,254.32,254.24,7.70996367]
[1732308525036,7.70996367,254.34,254.24,7.70996367]
[1732308525415,7.70996367,254.32,254.24,7.70996367]
[1732308526444,7.70996367,254.32,254.22,7.70996367]
[1732308526632,7.70996367,254.3,254.21,7.70996367]
[1732308527309,22.6442,254.38,254.13,17.8194]
[1732308527310,7.70996367,254.28,254.13,15.3194]
[1732308527516,7.70996367,254.28,254.18,7.70996367]
[1732308528439,7.70996367,254.28,254.2,7.70996367]
[1732308531543,7.20996367,254.28,254.2,7.70996367]
[1732308532314,7.20996367,254.28,254.18,7.70996367]
[1732308532843,7.70996367,254.25,254.18,7.70996367]
[1732308533021,7.70996367,254.21,254.13,15.3194]
[1732308533216,7.70996367,254.23,254.15,7.70996367]
[1732308533634,7.70996367,254.25,254.15,7.70996367]